fUST/lending_fUST_20260516
["ID","MTS","AMOUNT","RATE_DAILY","PERIOD"]
[422362607,1778873444000,-500.0,0.0001178,2]
[422362601,1778873444000,-500.0,0.0001178,2]
[422362608,1778873444000,-2465.78,0.0001178,2]
[422362621,1778873444000,-500.0,0.0001178,2]
[422362606,1778873444000,-500.0,0.0001178,2]
[422362612,1778873444000,-976.39,0.0001178,2]
[422362611,1778873444000,-1351.49,0.0001178,2]
[422362610,1778873444000,-500.0,0.0001178,2]
[422362613,1778873444000,-500.0,0.0001178,2]
[422362617,1778873444000,-500.0,0.0001178,2]
[422362615,1778873444000,-545.96,0.0001178,2]
[422362616,1778873444000,-1044.92,0.0001178,2]
[422362614,1778873444000,-500.0,0.0001178,2]
[422362618,1778873444000,-810.96,0.0001178,2]
[422362622,1778873444000,-500.0,0.0001178,2]
[422362620,1778873444000,-1448.19,0.0001178,2]
[422362619,1778873444000,-500.0,0.0001178,2]
[422362593,1778873444000,-500.0,0.0001178,2]
[422362609,1778873444000,-500.0,0.0001178,2]
[422362591,1778873444000,-672.35,0.0001178,2]
[422362564,1778873444000,-500.0,0.00011506,2]
[422362590,1778873444000,-504.76,0.0001178,2]
[422362561,1778873444000,-2547.11,0.00011506,2]
[422362567,1778873444000,-8909.01,0.00011506,2]
[422362562,1778873444000,-45885.62,0.00011506,2]
[422362563,1778873444000,-1112.06,0.00011506,2]
[422362565,1778873444000,-888.04,0.00011506,2]
[422362566,1778873444000,-3850.84,0.00011506,2]
[422362560,1778873444000,-2209.92,0.00011506,2]
[422362568,1778873444000,-2891.81,0.00011506,2]
[422362570,1778873444000,-3213.43,0.00011506,2]
[422362575,1778873444000,-3799.48,0.00011506,2]
[422362569,1778873444000,-1150.67,0.00011506,2]
[422362573,1778873444000,-500.0,0.00011506,2]
[422362572,1778873444000,-3867.89,0.00011506,2]
[422362571,1778873444000,-2720.76,0.00011506,2]
[422362574,1778873444000,-1291.41,0.00011506,2]
[422362576,1778873444000,-401.0,0.00011507,3]
[422362578,1778873444000,-241.71478389,0.00011544,2]
[422362577,1778873444000,-200.0,0.0001151,2]
[422362579,1778873444000,-200.0,0.0001171,2]
[422362584,1778873444000,-1136.8985,0.0001178,2]
[422362583,1778873444000,-749.7844,0.0001178,2]
[422362585,1778873444000,-1886.6829,0.0001178,2]
[422362586,1778873444000,-888.81,0.0001178,2]
[422362587,1778873444000,-500.0,0.0001178,2]
[422362580,1778873444000,-160.0,0.00011756,4]
[422362582,1778873444000,-1052.0,0.00011776,2]
[422362581,1778873444000,-1052.0,0.00011776,2]
[422362588,1778873444000,-500.0,0.0001178,2]
[422362589,1778873444000,-886.0,0.0001178,2]
[422362592,1778873444000,-500.0,0.0001178,2]
[422362623,1778873444000,-500.0,0.0001178,2]
[422362647,1778873444000,-1653.96,0.0001178,2]
[422362624,1778873444000,-500.0,0.0001178,2]
[422362660,1778873444000,-500.0,0.0001178,2]
[422362658,1778873444000,-2784.6,0.0001178,2]
[422362663,1778873444000,-1104.71,0.0001178,2]
[422362670,1778873444000,-1502.33,0.0001178,2]
[422362659,1778873444000,-500.0,0.0001178,2]
[422362666,1778873444000,-593.21,0.0001178,2]
[422362667,1778873444000,-500.0,0.0001178,2]
[422362669,1778873444000,-6569.78,0.0001178,2]
[422362668,1778873444000,-6030.49,0.0001178,2]
[422362664,1778873444000,-500.0,0.0001178,2]
[422362665,1778873444000,-500.0,0.0001178,2]
[422362672,1778873444000,-500.0,0.0001178,2]
[422362671,1778873444000,-627.43,0.0001178,2]
[422362674,1778873444000,-1049.7,0.0001178,2]
[422362628,1778873444000,-2457.29,0.0001178,2]
[422362684,1778873444000,-939.67,0.0001178,2]
[422362683,1778873444000,-2964.26,0.0001178,2]
[422362675,1778873444000,-5633.26,0.0001178,2]
[422362682,1778873444000,-500.0,0.0001178,2]
[422362679,1778873444000,-1738.75,0.0001178,2]
[422362680,1778873444000,-2550.82,0.0001178,2]
[422362677,1778873444000,-1663.69,0.0001178,2]
[422362676,1778873444000,-3297.84,0.0001178,2]
[422362678,1778873444000,-500.0,0.0001178,2]
[422362681,1778873444000,-500.0,0.0001178,2]
[422362685,1778873444000,-551.94,0.0001178,2]
[422362689,1778873444000,-500.0,0.0001178,2]
[422362687,1778873444000,-500.0,0.0001178,2]
[422362686,1778873444000,-500.0,0.0001178,2]
[422362661,1778873444000,-817.32,0.0001178,2]
[422362662,1778873444000,-557.47440546,0.0001178,2]
[422362673,1778873444000,-944.1,0.0001178,2]
[422362649,1778873444000,-500.0,0.0001178,2]
[422362651,1778873444000,-500.0,0.0001178,2]
[422362625,1778873444000,-843.56,0.0001178,2]
[422362629,1778873444000,-500.0,0.0001178,2]
[422362631,1778873444000,-500.0,0.0001178,2]
[422362630,1778873444000,-500.0,0.0001178,2]
[422362626,1778873444000,-729.43,0.0001178,2]
[422362627,1778873444000,-1246.22,0.0001178,2]
[422362633,1778873444000,-865.56,0.0001178,2]
[422362632,1778873444000,-500.0,0.0001178,2]
[422362641,1778873444000,-1370.55,0.0001178,2]
[422362636,1778873444000,-539.9,0.0001178,2]
[422362637,1778873444000,-500.0,0.0001178,2]
[422362642,1778873444000,-709.47,0.0001178,2]
[422362638,1778873444000,-500.0,0.0001178,2]
[422362640,1778873444000,-500.0,0.0001178,2]
[422362639,1778873444000,-500.0,0.0001178,2]
[422362646,1778873444000,-1201.53,0.0001178,2]
[422362634,1778873444000,-500.0,0.0001178,2]
[422362648,1778873444000,-962.27,0.0001178,2]
[422362650,1778873444000,-500.0,0.0001178,2]
[422362645,1778873444000,-646.95,0.0001178,2]
[422362653,1778873444000,-1351.45,0.0001178,2]
[422362654,1778873444000,-500.0,0.0001178,2]
[422362644,1778873444000,-500.0,0.0001178,2]
[422362656,1778873444000,-944.08,0.0001178,2]
[422362657,1778873444000,-786.67,0.0001178,2]
[422362652,1778873444000,-2653.91,0.0001178,2]
[422362643,1778873444000,-716.32,0.0001178,2]
[422362635,1778873444000,-1420.79,0.0001178,2]
[422362655,1778873444000,-500.0,0.0001178,2]
[422362706,1778873445000,-2130.91,0.0001178,2]
[422362718,1778873445000,-2734.34,0.0001178,2]
[422362711,1778873445000,-574.64,0.0001178,2]
[422362713,1778873445000,-500.0,0.0001178,2]
[422362714,1778873445000,-500.0,0.0001178,2]
[422362721,1778873445000,-5878.34,0.0001178,2]
[422362717,1778873445000,-500.0,0.0001178,2]
[422362716,1778873445000,-1663.23,0.0001178,2]
[422362715,1778873445000,-2016.32,0.0001178,2]
[422362712,1778873445000,-500.0,0.0001178,2]
[422362719,1778873445000,-500.0,0.0001178,2]
[422362722,1778873445000,-4055.88,0.0001178,2]
[422362708,1778873445000,-6724.2,0.0001178,2]
[422362724,1778873445000,-978.49,0.0001178,2]
[422362702,1778873445000,-2561.07,0.0001178,2]
[422362693,1778873445000,-2446.55,0.0001178,2]
[422362705,1778873445000,-8223.09,0.0001178,2]
[422362690,1778873445000,-936.23,0.0001178,2]
[422362692,1778873445000,-500.0,0.0001178,2]
[422362696,1778873445000,-2437.13,0.0001178,2]
[422362694,1778873445000,-2231.25,0.0001178,2]
[422362697,1778873445000,-7788.95,0.0001178,2]
[422362695,1778873445000,-500.0,0.0001178,2]
[422362703,1778873445000,-500.0,0.0001178,2]
[422362699,1778873445000,-2346.22,0.0001178,2]
[422362710,1778873445000,-603.27,0.0001178,2]
[422362709,1778873445000,-3283.86,0.0001178,2]
[422362700,1778873445000,-1548.38,0.0001178,2]
[422362701,1778873445000,-1118.07,0.0001178,2]
[422362704,1778873445000,-7058.03,0.0001178,2]
[422362707,1778873445000,-597.89,0.0001178,2]
[422362698,1778873445000,-2686.28,0.0001178,2]
[422362720,1778873445000,-1295.62,0.0001178,2]
[422362728,1778873445000,-2547.11,0.0001178,2]
[422362727,1778873445000,-2209.92,0.0001178,2]
[422362767,1778873445000,-36153.23824826,0.000119,2]
[422362765,1778873445000,-18936.477667,0.00011889,2]
[422362766,1778873445000,-100000.0,0.000119,2]
[422362763,1778873445000,-500.0,0.0001178,2]
[422362762,1778873445000,-500.0,0.00011506,2]
[422362760,1778873445000,-181.92129051,0.00010958,2]
[422362764,1778873445000,-401.3938044,0.00011889,2]
[422362761,1778873445000,-500.0,0.00011232,2]
[422362759,1778873445000,-318.07870949,0.00010958,2]
[422362747,1778873445000,-1291.41,0.0001178,2]
[422362750,1778873445000,-163.26009095,0.00011781,2]
[422362751,1778873445000,-240.0,0.000118,31]
[422362749,1778873445000,-2877.06990905,0.00011781,2]
[422362746,1778873445000,-500.0,0.0001178,2]
[422362748,1778873445000,-3799.48,0.0001178,2]
[422362758,1778873445000,-151.0,8.581e-05,2]
[422362754,1778873445000,-9146.8450286,0.00011889,2]
[422362745,1778873445000,-3867.89,0.0001178,2]
[422362725,1778873445000,-2696.25,0.0001178,2]
[422362739,1778873445000,-2891.81,0.0001178,2]
[422362735,1778873445000,-3850.84,0.0001178,2]
[422362729,1778873445000,-45885.62,0.0001178,2]
[422362730,1778873445000,-1112.06,0.0001178,2]
[422362734,1778873445000,-888.04,0.0001178,2]
[422362740,1778873445000,-96.65356234,0.0001178,2]
[422362737,1778873445000,-8909.01,0.0001178,2]
[422362741,1778873445000,-1054.01643766,0.0001178,2]
[422362743,1778873445000,-3213.43,0.0001178,2]
[422362744,1778873445000,-2720.76,0.0001178,2]
[422362752,1778873445000,-200.0,0.0001181,2]
[422362753,1778873445000,-160.0,0.00011889,2]
[422362732,1778873445000,-500.0,0.0001178,2]
[422362768,1778873446000,-15468.67238213,0.000119,2]
[422362770,1778873446000,-5000.0,8.495e-05,2]
[422362771,1778873446000,-3240.16315752,0.000119,2]
[422362774,1778873446000,-12856.87435787,0.000119,2]
[422362773,1778873446000,-1844.3,0.000119,2]
[422362772,1778873446000,-11720.15888891,0.000119,2]
[422362788,1778873493000,-152.0,9.658e-05,7]
[422362792,1778873764000,-206.93653767,0.00012611,120]
[422362791,1778873764000,-204.02248777,0.00012576,120]
[422362793,1778873764000,-200.0,0.00012829,120]
[422362795,1778873764000,-323.71294952,0.00014172,120]
[422362794,1778873764000,-200.0,0.00014004,120]
[422362796,1778873764000,-193.77837302,0.00014296,120]
[422362798,1778873764000,-151.82375512,0.0001468,120]
[422362797,1778873764000,-175.03542772,0.00014594,120]
[422362800,1778873764000,-223.58726656,0.00015145,120]
[422362806,1778873764000,-3623.26409097,0.00018,120]
[422362805,1778873764000,-200.0,0.00017852,120]
[422362804,1778873764000,-200.0,0.00017271,120]
[422362799,1778873764000,-193.99719582,0.00014958,120]
[422362802,1778873764000,-203.62741243,0.00015355,120]
[422362801,1778873764000,-152.10269378,0.00015307,120]
[422362803,1778873764000,-302.7822217,0.00015794,120]
[422362807,1778873790000,200.0,0.0001185,120]
[422362809,1778873850000,298.34419958,0.00017922,120]
[422362808,1778873850000,200.0,0.00017738,120]
[422362811,1778874030000,200.0,0.00017953,120]
[422362812,1778874031000,310.37009115,0.00017922,120]
[422362817,1778874330000,302.11346305,0.00017922,120]
[422362816,1778874330000,200.0,0.00018055,120]
[422362824,1778874339000,309.19104009,0.00018409,120]
[422362822,1778874339000,2003.50598818,0.00018493,120]
[422362825,1778874340000,308.96074868,0.0001841,120]
[422362828,1778874430000,272.13279621,0.0001841,120]
[422362827,1778874430000,5000.0,5e-05,2]
[422362829,1778874453000,5000.0,5e-05,2]
[422362830,1778874453000,214.11471643,0.0001841,120]
[422362831,1778874475000,2859.74588715,5e-05,2]
[422362832,1778874475000,157.41103401,0.0001841,120]
[422362833,1778874510000,200.0,0.00017552,120]
[422362874,1778874632000,-600.0,9.57e-05,2]
[422362860,1778874632000,-300.0,9.383e-05,2]
[422362863,1778874632000,-300.0,9.383e-05,2]
[422362858,1778874632000,-300.0,9.383e-05,2]
[422362866,1778874632000,-300.0,9.383e-05,2]
[422362855,1778874632000,-458.32,9.2e-05,14]
[422362859,1778874632000,-300.0,9.383e-05,2]
[422362862,1778874632000,-300.0,9.383e-05,2]
[422362856,1778874632000,-492.33,9.2e-05,14]
[422362865,1778874632000,-300.0,9.383e-05,2]
[422362854,1778874632000,-506.70613936,9.078e-05,2]
[422362861,1778874632000,-300.0,9.383e-05,2]
[422362857,1778874632000,-171.93,9.2e-05,14]
[422362853,1778874632000,-176.747651,8.383e-05,2]
[422362852,1778874632000,-439.64209151,7.078e-05,2]
[422362850,1778874632000,-372.57804365,5.078e-05,2]
[422362851,1778874632000,-164.617923,5.155e-05,2]
[422362878,1778874632000,-500.0,9.803e-05,2]
[422362864,1778874632000,-300.0,9.383e-05,2]
[422362867,1778874632000,-300.0,9.383e-05,2]
[422362869,1778874632000,-300.0,9.383e-05,2]
[422362871,1778874632000,-300.0,9.383e-05,2]
[422362886,1778874632000,-500.0,9.803e-05,2]
[422362883,1778874632000,-500.0,9.803e-05,2]
[422362879,1778874632000,-500.0,9.803e-05,2]
[422362887,1778874632000,-500.0,9.803e-05,2]
[422362888,1778874632000,-500.0,9.803e-05,2]
[422362890,1778874632000,-39485.51659484,9.804e-05,2]
[422362889,1778874632000,-450.0,9.803e-05,2]
[422362885,1778874632000,-518.9824914,9.803e-05,2]
[422362882,1778874632000,-500.0,9.803e-05,2]
[422362884,1778874632000,-500.0,9.803e-05,2]
[422362880,1778874632000,-500.0,9.803e-05,2]
[422362876,1778874632000,-182.162,9.706e-05,2]
[422362875,1778874632000,-152.0,9.659e-05,7]
[422362870,1778874632000,-300.0,9.383e-05,2]
[422362877,1778874632000,-276.86151726,9.803e-05,2]
[422362873,1778874632000,-228.95,9.4e-05,14]
[422362872,1778874632000,-300.0,9.383e-05,2]
[422362891,1778874632000,-6432.93435988,9.804e-05,2]
[422362881,1778874632000,-500.0,9.803e-05,2]
[422362868,1778874632000,-300.0,9.383e-05,2]
[422362929,1778874638000,-632429.18593269,9.804e-05,2]
[422363460,1778874646000,-3619.43249293,9.804e-05,2]
[422363459,1778874646000,-152.0,9.656e-05,7]
[422363461,1778874690000,200.0,0.00017072,120]
[422363463,1778874750000,200.0,0.00018403,120]
[422363465,1778875170000,200.0,0.00018219,120]
[422363466,1778875290000,200.0,0.00018177,120]
[422363478,1778875410000,200.0,0.00017941,120]
[422363483,1778875710000,200.0,0.00018336,120]
[422363489,1778875830000,200.0,0.00017737,120]
[422363514,1778875832000,-1237.30973074,7.313e-05,2]
[422363521,1778875832000,-641.53184449,7.313e-05,2]
[422363524,1778875832000,-798.71078478,7.313e-05,2]
[422363508,1778875832000,-1071.458,7.313e-05,2]
[422363693,1778875838000,-1773.38980534,8.571e-05,2]
[422363695,1778875838000,-454.54989844,8.664e-05,2]
[422363691,1778875838000,-420.0,8.373e-05,2]
[422363689,1778875838000,-352.96165334,7.729e-05,2]
[422363699,1778875838000,-4338.23216855,8.771e-05,2]
[422363683,1778875838000,-1200.0,7.536e-05,2]
[422363677,1778875838000,-1250.98963999,7.313e-05,2]
[422363687,1778875838000,-275.0,7.687e-05,2]
[422363685,1778875838000,-300.0,7.612e-05,2]
[422363681,1778875838000,-4715.91076706,7.462e-05,2]
[422363703,1778875838000,-182.162,8.871e-05,2]
[422363679,1778875838000,-5000.0,7.387e-05,2]
[422363705,1778875838000,-5161.68984157,9.071e-05,2]
[422363701,1778875838000,-4357.12400997,8.871e-05,2]
[422363712,1778875838000,-500.0,9.503e-05,2]
[422363710,1778875838000,-500.0,9.503e-05,2]
[422363731,1778875838000,-1171909.04208843,9.504e-05,2]
[422363718,1778875838000,-500.0,9.503e-05,2]
[422363719,1778875838000,-500.0,9.503e-05,2]
[422363725,1778875838000,-33041.68924397,9.504e-05,2]
[422363716,1778875838000,-500.0,9.503e-05,2]
[422363722,1778875838000,-500.0,9.503e-05,2]
[422363714,1778875838000,-500.0,9.503e-05,2]
[422363724,1778875838000,-218.4863232,9.503e-05,2]
[422363708,1778875838000,-193.80306209,9.503e-05,2]
[422363697,1778875838000,-2687.58851647,8.771e-05,2]
[422363706,1778875838000,-500.0,9.503e-05,2]
[422363728,1778875838000,-1477.8415112,9.504e-05,2]
[422363782,1778875839000,-500.0,0.00010958,2]
[422363780,1778875839000,-3565.5208,0.00010958,2]
[422363773,1778875839000,-845.51462516,0.00010858,2]
[422363795,1778875839000,-500.0,0.00010958,2]
[422363784,1778875839000,-500.0,0.00010958,2]
[422363792,1778875839000,-500.0,0.00010958,2]
[422363788,1778875839000,-500.0,0.00010958,2]
[422363794,1778875839000,-500.0,0.00010958,2]
[422363814,1778875839000,-2054.81,0.00010958,2]
[422363786,1778875839000,-786.75,0.00010958,2]
[422363812,1778875839000,-500.0,0.00010958,2]
[422363805,1778875839000,-931.72,0.00010958,2]
[422363803,1778875839000,-542.72339246,0.00010958,2]
[422363761,1778875839000,-3715.72626716,0.00010858,2]
[422363816,1778875839000,-500.0,0.00010958,2]
[422363820,1778875839000,-500.0,0.00010958,2]
[422363809,1778875839000,-926.71,0.00010958,2]
[422363790,1778875839000,-500.0,0.00010958,2]
[422363775,1778875839000,-28719.47681592,0.00010858,2]
[422363759,1778875839000,-19507.1685314,0.00010858,2]
[422363768,1778875839000,-3992.27447946,0.00010858,2]
[422363818,1778875839000,-500.0,0.00010958,2]
[422363733,1778875839000,-152.0,9.658e-05,7]
[422363735,1778875839000,-748.35452472,9.658e-05,2]
[422363748,1778875839000,-151.0,0.00010244,2]
[422363737,1778875839000,-416.49475095,9.729e-05,2]
[422363739,1778875839000,-3314.9839512,9.799e-05,2]
[422363741,1778875839000,-221.79823395,9.828e-05,21]
[422363752,1778875839000,-161.65638237,0.00010844,2]
[422363763,1778875839000,-9907.9832119,0.00010858,2]
[422363743,1778875839000,-600.0,9.897e-05,2]
[422363754,1778875839000,-160.0,0.00010844,2]
[422363744,1778875839000,-164.617923,0.00010108,2]
[422363746,1778875839000,-325.8907786,0.00010244,2]
[422363756,1778875839000,-291988.43627154,0.00010858,2]
[422363777,1778875839000,-720.0,0.00010887,2]
[422363779,1778875839000,-500.0,0.00010925,2]
[422363771,1778875839000,-280375.94057545,0.00010858,2]
[422363765,1778875839000,-1538.17840722,0.00010858,2]
[422363750,1778875839000,-4310.02821339,0.00010787,2]
[422363807,1778875839000,-500.0,0.00010958,2]
[422363832,1778875839000,-500.0,0.00010958,2]
[422363810,1778875839000,-740.67,0.00010958,2]
[422363860,1778875839000,-721.3,0.00010958,2]
[422363871,1778875839000,-1201.98,0.00010958,2]
[422363868,1778875839000,-812.46,0.00010958,2]
[422363870,1778875839000,-801.9,0.00010958,2]
[422363874,1778875839000,-2211.59,0.00010958,2]
[422363878,1778875839000,-500.0,0.00010958,2]
[422363875,1778875839000,-500.0,0.00010958,2]
[422363880,1778875839000,-500.0,0.00010958,2]
[422363864,1778875839000,-1183.99,0.00010958,2]
[422363890,1778875839000,-500.0,0.00010958,2]
[422363882,1778875839000,-539.13,0.00010958,2]
[422363884,1778875839000,-1378.3,0.00010958,2]
[422363894,1778875839000,-500.0,0.00010958,2]
[422363886,1778875839000,-500.0,0.00010958,2]
[422363897,1778875839000,-999.13,0.00010958,2]
[422363822,1778875839000,-813.66,0.00010958,2]
[422363888,1778875839000,-500.0,0.00010958,2]
[422363900,1778875839000,-171.82899164,0.00010958,2]
[422363892,1778875839000,-2320.5,0.00010958,2]
[422363866,1778875839000,-591.22,0.00010958,2]
[422363896,1778875839000,-500.0,0.00010958,2]
[422363858,1778875839000,-560.29,0.00010958,2]
[422363824,1778875839000,-870.77,0.00010958,2]
[422363826,1778875839000,-500.0,0.00010958,2]
[422363837,1778875839000,-607.86,0.00010958,2]
[422363839,1778875839000,-738.34,0.00010958,2]
[422363841,1778875839000,-2047.74,0.00010958,2]
[422363843,1778875839000,-500.0,0.00010958,2]
[422363830,1778875839000,-1206.82,0.00010958,2]
[422363833,1778875839000,-500.0,0.00010958,2]
[422363828,1778875839000,-500.0,0.00010958,2]
[422363862,1778875839000,-500.0,0.00010958,2]
[422363845,1778875839000,-500.0,0.00010958,2]
[422363847,1778875839000,-500.0,0.00010958,2]
[422363849,1778875839000,-500.0,0.00010958,2]
[422363851,1778875839000,-702.96,0.00010958,2]
[422363852,1778875839000,-500.0,0.00010958,2]
[422363854,1778875839000,-500.0,0.00010958,2]
[422363856,1778875839000,-500.0,0.00010958,2]
[422363835,1778875839000,-500.0,0.00010958,2]
[422364000,1778875840000,-500.0,0.00010958,2]
[422363998,1778875840000,-500.0,0.00010958,2]
[422363997,1778875840000,-748.76100836,0.00010958,2]
[422364003,1778875840000,-500.0,0.00010958,2]
[422364001,1778875840000,-53.65899164,0.00010958,2]
[422364002,1778875840000,-446.34100836,0.00010958,2]
[422363999,1778875840000,-500.0,0.00010958,2]
[422364022,1778875841000,-500.0,0.00010958,2]
[422364032,1778875841000,-500.0,0.00010958,2]
[422364024,1778875841000,-2125.68,0.00010958,2]
[422364023,1778875841000,-500.0,0.00010958,2]
[422364027,1778875841000,-1448.96,0.00010958,2]
[422364026,1778875841000,-500.0,0.00010958,2]
[422364021,1778875841000,-4694.38,0.00010958,2]
[422364033,1778875841000,-2470.21,0.00010958,2]
[422364028,1778875841000,-2030.94,0.00010958,2]
[422364031,1778875841000,-500.0,0.00010958,2]
[422364029,1778875841000,-500.0,0.00010958,2]
[422364017,1778875841000,-874.75,0.00010958,2]
[422364025,1778875841000,-1386.41,0.00010958,2]
[422364015,1778875841000,-500.0,0.00010958,2]
[422364005,1778875841000,-500.0,0.00010958,2]
[422364012,1778875841000,-500.0,0.00010958,2]
[422364019,1778875841000,-522.86,0.00010958,2]
[422364014,1778875841000,-2720.17868989,0.00010958,2]
[422364013,1778875841000,-503.06131011,0.00010958,2]
[422364016,1778875841000,-675.8,0.00010958,2]
[422364018,1778875841000,-2633.69,0.00010958,2]
[422364009,1778875841000,-578.42423095,0.00010958,2]
[422364020,1778875841000,-500.0,0.00010958,2]
[422364010,1778875841000,-500.0,0.00010958,2]
[422364006,1778875841000,-1126.24,0.00010958,2]
[422364007,1778875841000,-500.0,0.00010958,2]
[422364008,1778875841000,-2099.42576905,0.00010958,2]
[422364030,1778875841000,-1038.51,0.00010958,2]
[422364011,1778875841000,-500.0,0.00010958,2]
[422364035,1778875841000,-500.0,0.00010958,2]
[422364004,1778875841000,-1251.94,0.00010958,2]
[422364043,1778875841000,-1859.38,0.00010958,2]
[422364036,1778875841000,-500.0,0.00010958,2]
[422364074,1778875841000,-2863.06244215,0.00010958,2]
[422364068,1778875841000,-4062.03696279,0.00010958,2]
[422364065,1778875841000,-2736.55,0.00010958,2]
[422364072,1778875841000,-2278.62,0.00010958,2]
[422364063,1778875841000,-293.45982412,0.00010958,2]
[422364073,1778875841000,-500.0,0.00010958,2]
[422364066,1778875841000,-500.0,0.00010958,2]
[422364070,1778875841000,-671.77936835,0.00010958,2]
[422364071,1778875841000,-444.19966886,0.00010958,2]
[422364069,1778875841000,-703.674,0.00010958,2]
[422364059,1778875841000,-500.0,0.00010958,2]
[422364061,1778875841000,-1661.72017588,0.00010958,2]
[422364057,1778875841000,-596.93,0.00010958,2]
[422364056,1778875841000,-500.0,0.00010958,2]
[422364067,1778875841000,-502.73,0.00010958,2]
[422364049,1778875841000,-1775.76,0.00010958,2]
[422364040,1778875841000,-2238.57,0.00010958,2]
[422364047,1778875841000,-500.0,0.00010958,2]
[422364042,1778875841000,-6490.79,0.00010958,2]
[422364039,1778875841000,-2038.79,0.00010958,2]
[422364038,1778875841000,-783.06,0.00010958,2]
[422364037,1778875841000,-500.0,0.00010958,2]
[422364041,1778875841000,-500.0,0.00010958,2]
[422364045,1778875841000,-1290.32,0.00010958,2]
[422364051,1778875841000,-5603.5,0.00010958,2]
[422364048,1778875841000,-500.0,0.00010958,2]
[422364046,1778875841000,-6852.57,0.00010958,2]
[422364054,1778875841000,-1142.13,0.00010958,2]
[422364053,1778875841000,-1386.03,0.00010958,2]
[422364044,1778875841000,-2134.22,0.00010958,2]
[422364087,1778875843000,-446.0,0.00010958,2]
[422364088,1778875843000,-70.83755785,0.00010958,2]
[422364089,1778875843000,-458.00199483,0.00010958,2]
[422364090,1778875843000,-632.9392037,0.00010958,2]
[422364092,1778875843000,-450.44199483,0.00010958,2]
[422364091,1778875843000,-35.26880147,0.00010958,2]
[422364121,1778875848000,-655.56,0.00010958,2]
[422364120,1778875848000,-786.73,0.00010958,2]
[422364119,1778875848000,-1682.22,0.00010958,2]
[422364115,1778875848000,-2267.3,0.00010958,2]
[422364109,1778875848000,-500.0,0.00010958,2]
[422364113,1778875848000,-3209.03,0.00010958,2]
[422364117,1778875848000,-1680.26,0.00010958,2]
[422364118,1778875848000,-500.0,0.00010958,2]
[422364114,1778875848000,-958.89,0.00010958,2]
[422364116,1778875848000,-7424.18,0.00010958,2]
[422364101,1778875848000,-500.0,0.00010958,2]
[422364110,1778875848000,-1304.46,0.00010958,2]
[422364105,1778875848000,-364.64606838,0.00010958,2]
[422364104,1778875848000,-1360.29392899,0.00010958,2]
[422364107,1778875848000,-500.0,0.00010958,2]
[422364106,1778875848000,-1079.68,0.00010958,2]
[422364108,1778875848000,-2246.87,0.00010958,2]
[422364103,1778875848000,-756.85469116,0.00010958,2]
[422364102,1778875848000,-2416.81531147,0.00010958,2]
[422364100,1778875848000,-49.55800517,0.00010958,2]
[422364123,1778875848000,-3166.23,0.00010958,2]
[422364112,1778875848000,-38238.01,0.00010958,2]
[422364133,1778875848000,-500.0,0.00010958,2]
[422364111,1778875848000,-500.0,0.00010958,2]
[422364124,1778875848000,-1076.17,0.00010958,2]
[422364122,1778875848000,-815.4,0.00010958,2]
[422364147,1778875848000,-500.0,0.00011232,2]
[422364144,1778875848000,-786.75,0.00011232,2]
[422364142,1778875848000,-3565.5208,0.00011232,2]
[422364143,1778875848000,-500.0,0.00011232,2]
[422364141,1778875848000,-151.0,0.000112,2]
[422364140,1778875848000,-456.491432,0.00011148,2]